fUSD/lending_fUSD_20240517
["ID","MTS","AMOUNT","RATE_DAILY","PERIOD"]
[327261862,1715945443923,-553.76254531,0.00012799,2]
[327261863,1715945443934,-500.0,0.00012799,2]
[327261864,1715945443943,-500.0,0.00012799,2]
[327261865,1715945443953,-500.0,0.00012799,2]
[327261866,1715945443962,-500.0,0.00012799,2]
[327261867,1715945443975,-500.0,0.00012799,2]
[327261869,1715945443985,-342.33,0.00012799,2]
[327261870,1715945443994,-500.0,0.00012799,2]
[327261871,1715945444004,-500.0,0.00012799,2]
[327261872,1715945444013,-500.0,0.00012799,2]
[327261873,1715945444022,-581.3,0.00012799,2]
[327261874,1715945444031,-581.3,0.00012799,2]
[327261875,1715945444041,-581.3,0.00012799,2]
[327261876,1715945444050,-606.8,0.00012799,2]
[327261877,1715945444060,-606.8,0.00012799,2]
[327261878,1715945444069,-606.8,0.00012799,2]
[327261879,1715945444079,-500.0,0.00012799,2]
[327261880,1715945444088,-500.0,0.00012799,2]
[327261881,1715945444098,-500.0,0.00012799,2]
[327261882,1715945444108,-670.79,0.00012799,2]
[327261883,1715945444118,-670.79,0.00012799,2]
[327261884,1715945444127,-670.79,0.00012799,2]
[327261885,1715945444137,-995.72,0.00012799,2]
[327261886,1715945444146,-995.72,0.00012799,2]
[327261887,1715945444156,-995.72,0.00012799,2]
[327261888,1715945444165,-1142.51,0.00012799,2]
[327261889,1715945444175,-1142.51,0.00012799,2]
[327261890,1715945444184,-1142.51,0.00012799,2]
[327261891,1715945444194,-661.14,0.00012799,2]
[327261892,1715945444203,-661.14,0.00012799,2]
[327261893,1715945444213,-661.14,0.00012799,2]
[327261894,1715945444223,-500.0,0.00012799,2]
[327261895,1715945444233,-500.0,0.00012799,2]
[327261896,1715945444243,-500.0,0.00012799,2]
[327261897,1715945444253,-500.0,0.00012799,2]
[327261898,1715945444263,-500.0,0.00012799,2]
[327261899,1715945444273,-500.0,0.00012799,2]
[327261900,1715945444283,-500.0,0.00012799,2]
[327261901,1715945444292,-634.58406322,0.00012799,2]
[327261902,1715945444301,-500.0,0.00012799,2]
[327261903,1715945444310,-500.0,0.00012799,2]
[327261904,1715945444320,-500.0,0.00012799,2]
[327261905,1715945444330,-500.0,0.00012799,2]
[327261906,1715945444339,-169.96,0.00012799,2]
[327261907,1715945444350,-500.0,0.00012799,2]
[327261908,1715945444359,-500.0,0.00012799,2]
[327261909,1715945444368,-500.0,0.00012799,2]
[327261910,1715945444378,-500.0,0.00012799,2]
[327261911,1715945444388,-500.0,0.00012799,2]
[327261912,1715945444397,-500.0,0.00012799,2]
[327261913,1715945444407,-500.0,0.00012799,2]
[327261914,1715945444416,-383.94,0.00012799,2]
[327261915,1715945444426,-500.0,0.00012799,2]
[327261916,1715945444436,-500.0,0.00012799,2]
[327261917,1715945444445,-500.0,0.00012799,2]
[327261918,1715945444455,-500.0,0.00012799,2]
[327261919,1715945444464,-500.0,0.00012799,2]
[327261920,1715945444474,-500.0,0.00012799,2]
[327261921,1715945444484,-500.0,0.00012799,2]
[327261922,1715945444494,-500.0,0.00012799,2]
[327261923,1715945444504,-500.0,0.00012799,2]
[327261924,1715945444513,-500.0,0.00012799,2]
[327261925,1715945444523,-500.0,0.00012799,2]
[327261926,1715945444532,-500.0,0.00012799,2]
[327261927,1715945444542,-500.0,0.00012799,2]
[327261928,1715945444551,-500.0,0.00012799,2]
[327261929,1715945444561,-500.0,0.00012799,2]
[327261930,1715945444571,-500.0,0.00012799,2]
[327261931,1715945444581,-500.0,0.00012799,2]
[327261932,1715945444591,-380.42,0.00012799,2]
[327261933,1715945444600,-868.02,0.00012799,2]
[327261934,1715945444610,-500.0,0.00012799,2]
[327261935,1715945444620,-868.02,0.00012799,2]
[327261936,1715945444630,-500.0,0.00012799,2]
[327261937,1715945444639,-868.02,0.00012799,2]
[327261938,1715945444650,-500.0,0.00012799,2]
[327261939,1715945444660,-500.0,0.00012799,2]
[327261940,1715945444669,-500.0,0.00012799,2]
[327261941,1715945444679,-366.55,0.00012799,2]
[327261942,1715945444688,-500.0,0.00012799,2]
[327261943,1715945444698,-500.0,0.00012799,2]
[327261944,1715945444708,-500.0,0.00012799,2]
[327261945,1715945444717,-500.0,0.00012799,2]
[327261946,1715945444727,-537.66,0.00012799,2]
[327261947,1715945444738,-500.0,0.00012799,2]
[327261948,1715945444747,-537.66,0.00012799,2]
[327261949,1715945444756,-500.0,0.00012799,2]
[327261950,1715945444765,-500.0,0.00012799,2]
[327261951,1715945444774,-537.66,0.00012799,2]
[327261952,1715945444784,-537.66,0.00012799,2]
[327261953,1715945444793,-500.0,0.00012799,2]
[327261954,1715945444802,-500.0,0.00012799,2]
[327261955,1715945444812,-500.0,0.00012799,2]
[327261956,1715945444822,-4483.34,0.00012799,2]
[327261957,1715945444832,-4483.34,0.00012799,2]
[327261958,1715945444842,-4483.34,0.00012799,2]
[327261959,1715945444852,-4483.34,0.00012799,2]
[327261960,1715945444862,-271.71791069,0.00012799,2]
[327261961,1715945444872,-500.0,0.00012799,2]
[327261962,1715945444881,-500.0,0.00012799,2]
[327261963,1715945444893,-500.0,0.00012799,2]
[327261964,1715945444904,-773.95,0.00012799,2]
[327261965,1715945444913,-500.0,0.00012799,2]
[327261966,1715945444923,-773.95,0.00012799,2]
[327261967,1715945444932,-500.0,0.00012799,2]
[327261968,1715945444942,-773.95,0.00012799,2]
[327261969,1715945444951,-500.0,0.00012799,2]
[327261970,1715945444960,-500.0,0.00012799,2]
[327261971,1715945444971,-500.0,0.00012799,2]
[327261972,1715945444981,-500.0,0.00012799,2]
[327261973,1715945444991,-500.0,0.00012799,2]
[327261974,1715945445000,-784.72,0.00012799,2]
[327261975,1715945445010,-784.72,0.00012799,2]
[327261976,1715945445019,-784.72,0.00012799,2]
[327261977,1715945445028,-434.26015936,0.00012799,2]
[327261978,1715945445038,-500.0,0.00012799,2]
[327261979,1715945445048,-500.0,0.00012799,2]
[327261980,1715945445057,-500.0,0.00012799,2]
[327261981,1715945445066,-500.0,0.00012799,2]
[327261982,1715945445076,-500.0,0.00012799,2]
[327261983,1715945445085,-500.0,0.00012799,2]
[327261984,1715945445094,-500.0,0.00012799,2]
[327261985,1715945445104,-500.0,0.00012799,2]
[327261986,1715945445114,-500.0,0.00012799,2]
[327261987,1715945445123,-500.0,0.00012799,2]
[327261988,1715945445133,-500.0,0.00012799,2]
[327261989,1715945445142,-500.0,0.00012799,2]
[327261990,1715945445152,-522.8,0.00012799,2]
[327261991,1715945445161,-500.0,0.00012799,2]
[327261992,1715945445170,-500.0,0.00012799,2]
[327261993,1715945445180,-500.0,0.00012799,2]
[327261994,1715945445189,-662.79,0.00012799,2]
[327261995,1715945445199,-662.79,0.00012799,2]
[327261996,1715945445208,-1722.82,0.00012799,2]
[327261997,1715945445218,-1722.82,0.00012799,2]
[327261998,1715945445227,-530.41428876,0.00012799,2]
[327261999,1715945445258,-132.37571124,0.00012799,2]
[327262000,1715945445267,-672.08495647,0.00012799,2]
[327262001,1715945445329,-477.02282496,0.00012779,2]
[327262002,1715945445339,-184.29031564,0.00012799,2]
[327262007,1715945446337,-432.91153538,0.00012779,2]
[327262008,1715945446350,-67.08846462,0.00012779,2]
[327262009,1715945446360,-866.44472789,0.00012799,2]
[327262010,1715945446371,-662.79,0.00012799,2]
[327262011,1715945446381,-747.04439597,0.00012799,2]
[327262019,1715945486387,151.0,0.00020469,120]
[327262020,1715945798002,151.0,0.00020469,120]
[327262024,1715946106580,151.0,0.00020469,120]
[327262054,1715946632123,-155.0,8.918e-05,2]
[327262055,1715946632134,-643.21413352,8.919e-05,2]
[327262056,1715946632143,-35.2879795,8.92e-05,2]
[327262057,1715946632156,-539.69020108,8.92e-05,2]
[327262058,1715946632187,-207.45173691,8.92e-05,2]
[327262059,1715946632197,-495.404,8.94e-05,2]
[327262060,1715946632208,-29.25539048,9e-05,2]
[327262061,1715946632310,-495.0264121,9e-05,2]
[327262062,1715946632322,-982.67,9.003e-05,2]
[327262063,1715946632332,-498.49128607,0.0001,2]
[327262064,1715946632343,-542.3140886,0.0001,2]
[327262065,1715946632384,-1616.31417857,0.0001,2]
[327262066,1715946632397,-3242.88044676,0.0001,2]
[327262067,1715946632407,-5526.72878187,0.00010764,2]
[327262068,1715946632419,-969.45652537,0.00010764,2]
[327262069,1715946632431,-3367.93087916,0.00010764,2]
[327262070,1715946632444,-1169.32315803,0.00010764,2]
[327262071,1715946632455,-994.48325,0.00010764,2]
[327262072,1715946632475,-361.42672625,0.00010764,2]
[327262085,1715946638232,-11480.65067932,0.00010764,2]
[327262087,1715946638242,-150.0,0.00010791,2]
[327262089,1715946638252,-150.0,0.00010791,2]
[327262091,1715946638262,-1500.0,0.00010793,2]
[327262093,1715946638271,-429.69,0.00010857,2]
[327262095,1715946638286,-297.8,0.00010867,2]
[327262097,1715946638295,-250.0,0.00010874,2]
[327262099,1715946638305,-200.0,0.00010884,2]
[327262101,1715946638315,-210.29,0.00010896,2]
[327262103,1715946638325,-250.0,0.00010911,2]
[327262105,1715946638335,-159.64,0.00010953,2]
[327262107,1715946638344,-1003.94,0.00010959,2]
[327262109,1715946638356,-10000.0,0.00010959,2]
[327262111,1715946638366,-3407.82,0.00010962,2]
[327262113,1715946638376,-7920.15009504,0.00011,2]
[327262115,1715946638386,-192.92,0.00011134,2]
[327262118,1715946638396,-24405.43966945,0.0001118,2]
[327262120,1715946638405,-982.67,0.00011267,2]
[327262122,1715946638415,-155.23469938,0.00011518,2]
[327262124,1715946638425,-1000.0,0.00011599,2]
[327262126,1715946638436,-2075.06,0.00011709,2]
[327262128,1715946638446,-164.29,0.00011717,2]
[327262129,1715946638458,-324.37,0.00012055,2]
[327262130,1715946638467,-680.22879089,0.00012084,2]
[327262131,1715946638477,-210.29,0.00012258,2]
[327262132,1715946638487,-3624.49,0.00012433,2]
[327262133,1715946638496,-3144.91546468,0.00012499,2]
[327262134,1715946638508,-44748.26693532,0.00012499,2]
[327262135,1715946638518,-205.02597298,0.000125,2]
[327262136,1715946638529,-3686.545,0.00012516,2]
[327262137,1715946638538,-1651.86682141,0.00012541,2]
[327262138,1715946638547,-205.0259729,0.00012544,2]
[327262139,1715946638558,-205.0259729,0.00012589,2]
[327262140,1715946638570,-7109.7111,0.00012599,2]
[327262141,1715946638580,-73371.0298,0.00012599,2]
[327262142,1715946638590,-7500.0,0.00012599,2]
[327262143,1715946638600,-1022.0,0.000126,2]
[327262144,1715946638609,-4895.0,0.00012608,2]
[327262146,1715946638619,-3713.526,0.00012608,2]
[327262148,1715946638628,-205.0259729,0.00012633,2]
[327262150,1715946638638,-153.55874554,0.0001265,2]
[327262152,1715946638648,-205.0259729,0.00012678,2]
[327262154,1715946638659,-36621.0015,0.00012679,2]
[327262156,1715946638668,-1000.0,0.00012679,2]
[327262159,1715946638678,-500.0,0.00012697,2]
[327262161,1715946638687,-500.0,0.00012697,2]
[327262163,1715946638697,-500.0,0.00012697,2]
[327262165,1715946638707,-500.0,0.00012697,2]
[327262167,1715946638716,-500.0,0.00012697,2]
[327262169,1715946638725,-500.0,0.00012697,2]
[327262170,1715946638734,-500.0,0.00012697,2]
[327262173,1715946638743,-500.0,0.00012697,2]
[327262175,1715946638753,-500.0,0.00012697,2]
[327262177,1715946638763,-2635.15,0.00012697,2]
[327262179,1715946638774,-500.0,0.00012697,2]
[327262181,1715946638783,-500.0,0.00012697,2]
[327262183,1715946638793,-500.0,0.00012697,2]
[327262185,1715946638802,-500.0,0.00012697,2]
[327262187,1715946638812,-500.0,0.00012697,2]
[327262189,1715946638821,-500.0,0.00012697,2]
[327262191,1715946638830,-500.0,0.00012697,2]
[327262193,1715946638840,-500.0,0.00012697,2]
[327262195,1715946638849,-914.4,0.00012697,2]
[327262197,1715946638859,-500.0,0.00012697,2]
[327262199,1715946638870,-515.84,0.00012697,2]
[327262201,1715946638879,-505.66,0.00012698,2]
[327262203,1715946638889,-500.0,0.00012698,2]
[327262205,1715946638898,-500.0,0.00012698,2]
[327262207,1715946638907,-537.37856684,0.00012698,2]
[327262209,1715946638916,-500.0,0.00012698,2]
[327262211,1715946638926,-829.76,0.00012698,2]
[327262213,1715946638936,-913.74511442,0.00012698,2]
[327262214,1715946638956,-1291.06,0.00012698,2]
[327262215,1715946638967,-1344.50488558,0.00012698,2]
[327262216,1715946638976,-169.09651375,0.00012698,2]
[327262217,1715946638989,-330.90348625,0.00012698,2]
[327262218,1715946638999,-500.0,0.00012698,2]
[327262219,1715946639008,-101.64288047,0.00012698,2]
[327262220,1715946639024,-398.35711953,0.00012698,2]
[327262221,1715946639034,-500.0,0.00012698,2]
[327262222,1715946639044,-500.0,0.00012698,2]
[327262223,1715946639053,-524.7,0.00012698,2]
[327262224,1715946639062,-500.0,0.00012698,2]
[327262225,1715946639072,-500.0,0.00012698,2]
[327262226,1715946639081,-723.35,0.00012698,2]
[327262228,1715946639090,-500.0,0.00012698,2]
[327262230,1715946639099,-500.0,0.00012698,2]
[327262232,1715946639109,-500.0,0.00012698,2]
[327262234,1715946639119,-500.0,0.00012698,2]
[327262236,1715946639128,-500.0,0.00012698,2]
[327262238,1715946639137,-500.0,0.00012698,2]
[327262240,1715946639147,-500.0,0.00012698,2]
[327262242,1715946639156,-500.0,0.00012698,2]
[327262244,1715946639165,-500.0,0.00012698,2]
[327262246,1715946639174,-500.0,0.00012698,2]
[327262248,1715946639184,-632.67,0.00012698,2]
[327262250,1715946639193,-500.0,0.00012698,2]
[327262252,1715946639203,-500.0,0.00012698,2]
[327262254,1715946639212,-500.0,0.00012698,2]
[327262256,1715946639221,-500.0,0.00012698,2]
[327262258,1715946639231,-500.0,0.00012698,2]
[327262260,1715946639241,-500.0,0.00012698,2]
[327262262,1715946639251,-500.0,0.00012698,2]
[327262264,1715946639260,-500.0,0.00012698,2]
[327262266,1715946639273,-610.38,0.00012698,2]
[327262268,1715946639286,-558.99,0.00012698,2]
[327262270,1715946639295,-500.0,0.00012698,2]
[327262272,1715946639305,-3870.08248549,0.00012699,2]
[327262275,1715946639319,-36018.73691451,0.00012699,2]
[327262277,1715946639328,-198.54546408,0.000127,2]
[327262279,1715946639338,-3690.502,0.00012712,2]
[327262281,1715946639348,-205.0259729,0.00012722,2]
[327262283,1715946639361,-335.68561283,0.00012741,2]
[327262285,1715946639371,-13073.86070468,0.00012742,2]
[327262288,1715946639395,-396.96657,0.00012742,2]
[327262291,1715946639407,-1308.38189617,0.00012742,2]
[327262391,1715946640359,-500.0,0.00012742,2]
[327262407,1715946640655,-6643.99999999,0.00012742,2]
[327262408,1715946640782,-2360.3096537,0.00012742,2]
[327262444,1715946643427,-666.7400095,0.00012742,2]
[327262453,1715946646472,-304.06,0.00012697,2]
[327262454,1715946646545,-195.94,0.00012697,2]
[327262455,1715946646555,-815.66000005,0.00012742,2]
[327262456,1715946677929,151.0,0.00020469,120]
[327262496,1715947831758,-411.26103104,8.545e-05,2]
[327262591,1715947837514,-231.95310248,8.545e-05,2]
[327262593,1715947837523,-249.24,8.546e-05,2]
[327262596,1715947837533,-150.0,9.183e-05,2]
[327262598,1715947837543,-43297.79581122,9.183e-05,2]
[327262600,1715947837552,-14551.48117453,9.184e-05,2]
[327262601,1715947837562,-919.06,9.186e-05,2]
[327262603,1715947837572,-5900.0,0.0001,2]
[327262605,1715947837581,-1500.0,0.00010618,2]
[327262607,1715947837592,-155.23469938,0.00010798,2]
[327262609,1715947837602,-916.61,0.00010818,2]
[327262611,1715947837611,-250.0,0.00010884,2]
[327262612,1715947837621,-2372.52,0.00010934,2]
[327262613,1715947837630,-164.29,0.0001095,2]
[327262614,1715947837640,-1249.46,0.0001099,2]
[327262615,1715947837654,-200.0,0.00011,2]
[327262616,1715947837663,-6249.68,0.00011041,2]
[327262617,1715947837678,-326.18,0.00011043,2]
[327262618,1715947837688,-397.54,0.00011226,2]
[327262619,1715947837698,-919.06,0.0001145,2]
[327262620,1715947837707,-323.89,0.00011642,2]
[327262621,1715947837717,-201.55083369,0.00011898,2]
[327262622,1715947837730,-566.16350359,0.00011899,2]
[327262623,1715947837741,-73371.0298,0.000119,2]
[327262624,1715947837750,-400.0,0.000119,4]
[327262625,1715947837760,-7500.0,0.000119,2]
[327262626,1715947837769,-153.55874554,0.000119,2]
[327262627,1715947837779,-1111.8507,0.000119,2]
[327262628,1715947837788,-201.55083361,0.00011922,2]
[327262629,1715947837798,-800.33064608,0.00011998,2]
[327262630,1715947837808,-176.83236742,0.00011999,2]
[327262631,1715947837818,-19626.96507151,0.00012,2]
[327262632,1715947837828,-19415.74215906,0.00012,2]
[327262633,1715947837847,-21250.98645734,0.00012,2]
[327262634,1715947837873,-29447.59999998,0.00012,2]
[327262635,1715947837885,-6104.88000001,0.00012,2]
[327262773,1715947839780,-703.90320097,0.00012,2]
[327262774,1715947839834,-607.89499999,0.00012,2]
[327262775,1715947839847,-493.85199076,0.00012,2]
[327262776,1715947839897,-3210.0,0.00012,2]
[327262777,1715947840016,-861.99853787,0.00012,2]
[327262778,1715947840029,-461.74,0.00012,2]
[327262779,1715947840042,-314.33454932,0.00012,2]
[327262780,1715947840058,-1460.81975144,0.00012,2]
[327262781,1715947840075,-1683.62819364,0.00012,2]
[327262882,1715947842847,-300.0,0.00012,2]
[327262883,1715947842859,-780.19664574,0.00012,2]
[327262884,1715947842871,-3365.81,0.00012,2]
[327262885,1715947842884,-3480.87,0.00012,2]
[327262886,1715947842895,-1516.6,0.00012,2]
[327262912,1715947843213,-633.56217276,0.00012,2]
[327262913,1715947845994,-304.21722,0.00012,2]
[327262914,1715947846064,-671.4800002,0.00012,2]
[327262923,1715948270385,-1063.64659674,9.416e-05,2]
[327262924,1715948270410,-36.35340326,9.417e-05,2]
[327262943,1715949031906,-643.21413352,9.218e-05,2]
[327262944,1715949031917,-893.54,9.219e-05,2]
[327262945,1715949031926,-970.08187611,9.417e-05,2]
[327262946,1715949031936,-500.0,9.417e-05,2]
[327262947,1715949031945,-500.0,9.417e-05,2]
[327262948,1715949031954,-250.0,0.00010948,2]
[327262949,1715949031964,-357.68,0.00010966,2]
[327262950,1715949031974,-1580.66,0.00010974,2]
[327262951,1715949031983,-200.0,0.00011,2]
[327262952,1715949031993,-733.28,0.0001102,2]
[327262953,1715949032003,-260.94,0.00011126,2]
[327262954,1715949032014,-161.95,0.00011239,2]
[327262955,1715949032025,-893.54,0.00011483,2]
[327262956,1715949032040,-5361.68100437,0.00011688,2]
[327262957,1715949032055,-17629.81190325,0.00011688,2]
[327262976,1715949038135,-20306.3029036,0.00011688,2]
[327262978,1715949038145,-14213.15570994,0.00011689,2]
[327262980,1715949038155,-5704.45326893,0.000117,2]
[327262982,1715949038164,-1651.86682141,0.00011737,2]
[327262984,1715949038174,-7109.7111,0.000118,2]
[327262986,1715949038184,-1000.0,0.000118,2]
[327262988,1715949038193,-36621.0015,0.000118,2]
[327262990,1715949038203,-7500.0,0.000118,2]
[327262992,1715949038212,-400.0,0.000118,4]
[327262994,1715949038222,-1022.0,0.000118,2]
[327262997,1715949038231,-153.55874554,0.000118,2]
[327262998,1715949038241,-13064.82054492,0.0001188,2]
[327262999,1715949038250,-201.55083369,0.00011898,2]
[327263000,1715949038260,-15820.10323247,0.000119,2]
[327263001,1715949038368,-10700.0,0.000119,2]
[327263002,1715949038393,-156336.96786753,0.000119,2]
[327263003,1715949038403,-900.0,0.000119,4]
[327263004,1715949038412,-566.16350359,0.00011998,2]
[327263005,1715949038422,-999.99478136,0.00011998,2]
[327263006,1715949038432,-176.83236742,0.00011999,2]
[327263007,1715949038441,-11586.02761505,0.00011999,2]
[327263008,1715949038451,-329913.70885592,0.00012,2]
[327263009,1715949038460,-1250.0,0.00012,2]
[327263010,1715949038470,-55398.0,0.00012,2]
[327263012,1715949038480,-19626.96507151,0.00012,2]
[327263014,1715949038489,-409.61165246,0.00012,2]
[327263016,1715949038499,-6266.67334756,0.00012,2]
[327263152,1715949039968,-22077.16474601,0.00012,2]
[327263154,1715949039978,-548.73487624,0.00012,2]
[327263156,1715949039988,-5000.0,0.00012,2]
[327263158,1715949039999,-151.0,0.00012,2]
[327263160,1715949040010,-151.0,0.00012,2]
[327263162,1715949040020,-155.374188,0.00012,2]
[327263164,1715949040032,-157.17923,0.00012,2]
[327263166,1715949040044,-151.0,0.00012,2]
[327263168,1715949040054,-151.0,0.00012,2]
[327263170,1715949040064,-151.0,0.00012,2]
[327263172,1715949040074,-151.0,0.00012,2]
[327263174,1715949040084,-151.0,0.00012,2]
[327263176,1715949040094,-151.0,0.00012,2]
[327263178,1715949040103,-298.390571,0.00012,2]
[327263180,1715949040115,-151.0,0.00012,2]
[327263182,1715949040125,-151.0,0.00012,2]
[327263184,1715949040135,-309.648422,0.00012,2]
[327263186,1715949040144,-309.648422,0.00012,2]
[327263188,1715949040155,-309.648422,0.00012,2]
[327263190,1715949040165,-151.0,0.00012,2]
[327263192,1715949040175,-151.0,0.00012,2]
[327263194,1715949040185,-151.0,0.00012,2]
[327263196,1715949040195,-151.0,0.00012,2]
[327263198,1715949040204,-151.0,0.00012,2]
[327263200,1715949040215,-151.0,0.00012,2]
[327263203,1715949040225,-151.0,0.00012,2]
[327263205,1715949040235,-151.0,0.00012,2]
[327263207,1715949040245,-151.0,0.00012,2]
[327263208,1715949040255,-151.0,0.00012,2]
[327263210,1715949040264,-151.0,0.00012,2]
[327263238,1715949040510,-151.0,0.00012,2]
[327263240,1715949040520,-151.0,0.00012,2]
[327263242,1715949040530,-151.0,0.00012,2]
[327263244,1715949040539,-214.969624,0.00012,2]
[327263246,1715949040548,-151.0,0.00012,2]
[327263248,1715949040558,-151.0,0.00012,2]
[327263250,1715949040567,-151.0,0.00012,2]
[327263252,1715949040576,-151.0,0.00012,2]
[327263254,1715949040586,-151.0,0.00012,2]
[327263256,1715949040595,-234.725104,0.00012,2]
[327263258,1715949040605,-151.0,0.00012,2]
[327263259,1715949040616,-151.0,0.00012,2]
[327263261,1715949040626,-151.0,0.00012,2]
[327263263,1715949040635,-151.0,0.00012,2]
[327263265,1715949040644,-151.0,0.00012,2]
[327263267,1715949040654,-151.0,0.00012,2]
[327263269,1715949040664,-151.0,0.00012,2]
[327263271,1715949040673,-151.0,0.00012,2]
[327263273,1715949040683,-151.0,0.00012,2]
[327263276,1715949040692,-151.0,0.00012,2]
[327263277,1715949040701,-151.132464,0.00012,2]
[327263279,1715949040710,-154.394515,0.00012,2]
[327263281,1715949040719,-151.0,0.00012,2]
[327263283,1715949040729,-151.0,0.00012,2]
[327263286,1715949040739,-151.0,0.00012,2]
[327263288,1715949040749,-151.0,0.00012,2]
[327263289,1715949040759,-219.920849,0.00012,2]
[327263292,1715949040769,-219.920849,0.00012,2]
[327263294,1715949040778,-219.920849,0.00012,2]
[327263296,1715949040787,-219.920849,0.00012,2]
[327263298,1715949040797,-219.920849,0.00012,2]
[327263300,1715949040806,-219.920849,0.00012,2]
[327263302,1715949040815,-151.0,0.00012,2]
[327263304,1715949040826,-151.0,0.00012,2]
[327263306,1715949040835,-300.0,0.00012,2]
[327263308,1715949040845,-151.0,0.00012,2]
[327263310,1715949040854,-241.326377,0.00012,2]
[327263312,1715949040863,-151.0,0.00012,2]
[327263314,1715949040873,-151.0,0.00012,2]
[327263316,1715949040882,-151.0,0.00012,2]
[327263318,1715949040891,-151.0,0.00012,2]
[327263320,1715949040901,-151.0,0.00012,2]
[327263322,1715949040910,-151.0,0.00012,2]
[327263324,1715949040920,-151.0,0.00012,2]
[327263326,1715949040929,-151.0,0.00012,2]
[327263328,1715949040939,-157.757216,0.00012,2]
[327263330,1715949040948,-151.0,0.00012,2]
[327263332,1715949040957,-265.738201,0.00012,2]
[327263334,1715949040966,-151.0,0.00012,2]
[327263336,1715949040975,-151.0,0.00012,2]
[327263338,1715949040985,-151.0,0.00012,2]
[327263340,1715949040994,-151.0,0.00012,2]
[327263342,1715949041004,-151.0,0.00012,2]
[327263344,1715949041014,-151.0,0.00012,2]
[327263346,1715949041023,-151.0,0.00012,2]
[327263348,1715949041039,-151.0,0.00012,2]
[327263350,1715949041048,-151.0,0.00012,2]
[327263352,1715949041058,-178.011737,0.00012,2]
[327263354,1715949041068,-151.0,0.00012,2]
[327263356,1715949041079,-203.911039,0.00012,2]
[327263358,1715949041088,-151.0,0.00012,2]
[327263360,1715949041097,-3000.0,0.00012,2]
[327263362,1715949041109,-151.0,0.00012,2]
[327263364,1715949041120,-151.0,0.00012,2]
[327263366,1715949041131,-151.0,0.00012,2]
[327263368,1715949041141,-151.0,0.00012,2]
[327263370,1715949041150,-151.0,0.00012,2]
[327263372,1715949041159,-161.96436,0.00012,2]
[327263375,1715949041169,-272.28412,0.00012,2]
[327263377,1715949041178,-151.804396,0.00012,2]
[327263379,1715949041188,-151.335854,0.00012,2]
[327263381,1715949041197,-184.37135,0.00012,2]
[327263383,1715949041207,-338.758951,0.00012,2]
[327263385,1715949041216,-338.758951,0.00012,2]
[327263387,1715949041226,-338.758951,0.00012,2]
[327263389,1715949041236,-834.713684,0.00012,2]
[327263391,1715949041247,-338.758951,0.00012,2]
[327263393,1715949041257,-834.713684,0.00012,2]
[327263395,1715949041266,-338.758951,0.00012,2]
[327263397,1715949041276,-834.713684,0.00012,2]
[327263399,1715949041285,-151.0,0.00012,2]
[327263401,1715949041295,-338.758951,0.00012,2]